[Event "Titled Tuesday Blitz April 11 Late 2023"]
[White "Golubev, Mikhail"]
[Black "Goroshkov, Maksym"]
[WhiteFideId "14100983"]
[BlackFideId "14142716"]
[WhiteElo "2374"]
[BlackElo "2322"]
[Result "1-0"]
[Round "05"]
[TimeControl "180+2"]
[Date "2023.04.11"]
[WhiteClock "0:00:28"]
[BlackClock "0:01:17"]

1. e4 {[%clk 0:03:00]}  e5 {[%clk 0:03:00]} 2. Nf3 {[%clk 0:03:00]}  Nc6 {[%clk 0:03:00]} 3. Bc4 {[%clk 0:03:00]}  Bc5 {[%clk 0:02:59]} 4. c3 {[%clk 0:03:00]}  Nf6 {[%clk 0:02:59]} 5. d4 {[%clk 0:03:00]}  exd4 {[%clk 0:03:00]} 6. cxd4 {[%clk 0:03:00]}  Bb4+ {[%clk 0:03:01]} 7. Nbd2 {[%clk 0:03:00]}  d5 {[%clk 0:03:00]} 8. exd5 {[%clk 0:03:00]}  Nxd5 {[%clk 0:03:01]} 9. O-O {[%clk 0:03:00]}  O-O {[%clk 0:03:00]} 10. a3 {[%clk 0:02:48]}  Be7 {[%clk 0:02:56]} 11. Ba2 {[%clk 0:02:38]}  Bg4 {[%clk 0:02:53]} 12. h3 {[%clk 0:02:25]}  Bh5 {[%clk 0:02:50]} 13. Re1 {[%clk 0:02:14]}  Bf6 {[%clk 0:02:46]} 14. g4 {[%clk 0:02:04]}  Bg6 {[%clk 0:02:44]} 15. Ne4 {[%clk 0:02:04]}  Bxe4 {[%clk 0:02:28]} 16. Rxe4 {[%clk 0:02:05]}  Qd7 {[%clk 0:02:11]} 17. Ne5 {[%clk 0:01:58]}  Bxe5 {[%clk 0:02:07]} 18. dxe5 {[%clk 0:01:55]}  Rad8 {[%clk 0:02:07]} 19. Bg5 {[%clk 0:01:48]}  f6 {[%clk 0:01:51]} 20. exf6 {[%clk 0:01:48]}  gxf6 {[%clk 0:01:52]} 21. Bh6 {[%clk 0:01:48]}  Rf7 {[%clk 0:01:40]} 22. Qxd5 {[%clk 0:01:34]}  Ne5 {[%clk 0:01:31]} 23. Qxd7 {[%clk 0:01:23]}  Rxd7 {[%clk 0:01:31]} 24. Bxf7+ {[%clk 0:01:21]}  Kxf7 {[%clk 0:01:32]} 25. Bf4 {[%clk 0:01:17]}  Nd3 {[%clk 0:01:30]} 26. Rd1 {[%clk 0:01:10]}  c5 {[%clk 0:01:30]} 27. Be3 {[%clk 0:00:44]}  b5 {[%clk 0:01:29]} 28. Bxc5 {[%clk 0:00:41]}  Nxc5 {[%clk 0:01:29]} 29. Rxd7+ {[%clk 0:00:40]}  Nxd7 {[%clk 0:01:30]} 30. Rb4 {[%clk 0:00:39]}  a6 {[%clk 0:01:30]} 31. a4 {[%clk 0:00:39]}  bxa4 {[%clk 0:01:25]} 32. Rxa4 {[%clk 0:00:33]}  Nc5 {[%clk 0:01:25]} 33. Ra3 {[%clk 0:00:28]}  Ke6 {[%clk 0:01:17]} 34. b4 {[%clk 0:00:28]}  Nd3 {[%clk 0:01:17]} 35. Rxd3 {[%clk 0:00:28]} 1-0


[Site "https://www.chess.com"]

[Event "Titled Tuesday Blitz April 11 Late 2023"]
[White "Hoffmann, Asa"]
[Black "Urbina Perez, Juan Antonio"]
[WhiteFideId "2001470"]
[BlackFideId "2217368"]
[WhiteElo "2117"]
[BlackElo "2197"]
[Result "1-0"]
[Round "05"]
[TimeControl "180+2"]
[Date "2023.04.11"]
[WhiteClock "0:00:25"]
[BlackClock "0:00:06"]

1. d4 {[%clk 0:02:59]}  c5 {[%clk 0:02:57]} 2. dxc5 {[%clk 0:02:57]}  e6 {[%clk 0:02:57]} 3. Nc3 {[%clk 0:02:56]}  Bxc5 {[%clk 0:02:57]} 4. Ne4 {[%clk 0:02:56]}  Be7 {[%clk 0:02:49]} 5. Nd6+ {[%clk 0:02:56]}  Bxd6 {[%clk 0:02:48]} 6. Qxd6 {[%clk 0:02:55]}  Qe7 {[%clk 0:02:48]} 7. Bf4 {[%clk 0:02:55]}  Qxd6 {[%clk 0:02:46]} 8. Bxd6 {[%clk 0:02:55]}  Ne7 {[%clk 0:02:46]} 9. e4 {[%clk 0:02:51]}  Nbc6 {[%clk 0:02:45]} 10. O-O-O {[%clk 0:02:50]}  f6 {[%clk 0:02:42]} 11. f4 {[%clk 0:02:49]}  O-O {[%clk 0:02:36]} 12. Nf3 {[%clk 0:02:48]}  Re8 {[%clk 0:02:37]} 13. a3 {[%clk 0:02:41]}  b6 {[%clk 0:02:33]} 14. Bc4 {[%clk 0:02:40]}  Kf7 {[%clk 0:02:18]} 15. f5 {[%clk 0:02:35]}  Bb7 {[%clk 0:02:15]} 16. Rhf1 {[%clk 0:02:24]}  h6 {[%clk 0:02:05]} 17. e5 {[%clk 0:02:20]}  Rac8 {[%clk 0:02:00]} 18. fxe6+ {[%clk 0:02:17]}  dxe6 {[%clk 0:01:59]} 19. Ba2 {[%clk 0:01:56]}  f5 {[%clk 0:01:56]} 20. h3 {[%clk 0:01:54]}  g6 {[%clk 0:01:55]} 21. g4 {[%clk 0:01:54]}  Rcd8 {[%clk 0:01:43]} 22. Nh4 {[%clk 0:01:53]}  Kg7 {[%clk 0:01:13]} 23. gxf5 {[%clk 0:01:51]}  Nxf5 {[%clk 0:01:11]} 24. Nxf5+ {[%clk 0:01:48]}  exf5 {[%clk 0:01:11]} 25. e6 {[%clk 0:01:40]}  Ne7 {[%clk 0:01:08]} 26. Be5+ {[%clk 0:01:39]}  Kh7 {[%clk 0:01:06]} 27. Rd7 {[%clk 0:01:38]}  Bc6 {[%clk 0:00:58]} 28. Rxa7 {[%clk 0:01:35]}  Ra8 {[%clk 0:00:50]} 29. Rc7 {[%clk 0:01:28]}  Rac8 {[%clk 0:00:49]} 30. Rxc8 {[%clk 0:01:26]}  Rxc8 {[%clk 0:00:49]} 31. Rd1 {[%clk 0:01:24]}  g5 {[%clk 0:00:46]} 32. Bf6 {[%clk 0:01:14]}  Re8 {[%clk 0:00:42]} 33. Rd6 {[%clk 0:01:13]}  Ng8 {[%clk 0:00:31]} 34. Be5 {[%clk 0:01:08]}  Be4 {[%clk 0:00:28]} 35. Rxb6 {[%clk 0:01:01]}  Kg6 {[%clk 0:00:25]} 36. e7+ {[%clk 0:00:57]}  Kh5 {[%clk 0:00:22]} 37. Bf7+ {[%clk 0:00:56]}  Kh4 {[%clk 0:00:22]} 38. Bxe8 {[%clk 0:00:55]}  Nxe7 {[%clk 0:00:22]} 39. Bg7 {[%clk 0:00:52]}  Nd5 {[%clk 0:00:21]} 40. Rxh6+ {[%clk 0:00:50]}  Kg3 {[%clk 0:00:22]} 41. Rg6 {[%clk 0:00:49]}  Kh4 {[%clk 0:00:21]} 42. Bf6 {[%clk 0:00:47]}  Nxf6 {[%clk 0:00:19]} 43. Rxf6 {[%clk 0:00:47]}  f4 {[%clk 0:00:18]} 44. Bg6 {[%clk 0:00:46]}  Bg2 {[%clk 0:00:17]} 45. Bf5 {[%clk 0:00:44]}  f3 {[%clk 0:00:16]} 46. Bd3 {[%clk 0:00:41]}  Kg3 {[%clk 0:00:15]} 47. Kd2 {[%clk 0:00:40]}  Kxh3 {[%clk 0:00:15]} 48. Ke1 {[%clk 0:00:39]}  g4 {[%clk 0:00:15]} 49. Bf1 {[%clk 0:00:38]}  Kg3 {[%clk 0:00:08]} 50. Rf7 {[%clk 0:00:34]}  Kh2 {[%clk 0:00:07]} 51. c4 {[%clk 0:00:31]}  Kg1 {[%clk 0:00:07]} 52. Bxg2 {[%clk 0:00:30]}  Kxg2 {[%clk 0:00:08]} 53. Rf4 {[%clk 0:00:27]}  g3 {[%clk 0:00:08]} 54. c5 {[%clk 0:00:26]}  f2+ {[%clk 0:00:09]} 55. Ke2 {[%clk 0:00:26]}  Kh1 {[%clk 0:00:08]} 56. Rxf2 {[%clk 0:00:25]}  gxf2 {[%clk 0:00:06]} 57. Kxf2 {[%clk 0:00:25]} 1-0


[Site "https://www.chess.com"]

[Event "Titled Tuesday Blitz April 11 Late 2023"]
[White "Tomaszewski, Kacper"]
[Black "Ozalp, Burak"]
[WhiteFideId "1127373"]
[BlackFideId "6314210"]
[WhiteElo "2211"]
[BlackElo "2106"]
[Result "1-0"]
[Round "05"]
[TimeControl "180+2"]
[Date "2023.04.11"]
[WhiteClock "0:00:45"]
[BlackClock "0:00:18"]

1. c4 {[%clk 0:02:56]}  g6 {[%clk 0:02:55]} 2. Nf3 {[%clk 0:02:54]}  Bg7 {[%clk 0:02:56]} 3. d4 {[%clk 0:02:55]}  Nf6 {[%clk 0:02:55]} 4. Nc3 {[%clk 0:02:54]}  d5 {[%clk 0:02:52]} 5. cxd5 {[%clk 0:02:52]}  Nxd5 {[%clk 0:02:52]} 6. Bg5 {[%clk 0:02:53]}  Nc6 {[%clk 0:02:39]} 7. Rc1 {[%clk 0:02:48]}  O-O {[%clk 0:02:39]} 8. e3 {[%clk 0:02:46]}  h6 {[%clk 0:02:34]} 9. Bh4 {[%clk 0:02:46]}  Bg4 {[%clk 0:02:22]} 10. Be2 {[%clk 0:02:44]}  Re8 {[%clk 0:02:11]} 11. O-O {[%clk 0:02:43]}  Qd7 {[%clk 0:01:39]} 12. Bg3 {[%clk 0:02:36]}  Nxc3 {[%clk 0:01:32]} 13. bxc3 {[%clk 0:02:34]}  Rad8 {[%clk 0:01:32]} 14. Qb3 {[%clk 0:02:29]}  e5 {[%clk 0:01:20]} 15. Rfe1 {[%clk 0:02:23]}  e4 {[%clk 0:01:19]} 16. Nd2 {[%clk 0:02:21]}  Bxe2 {[%clk 0:01:17]} 17. Rxe2 {[%clk 0:02:22]}  h5 {[%clk 0:01:17]} 18. h3 {[%clk 0:02:21]}  b6 {[%clk 0:01:09]} 19. c4 {[%clk 0:02:04]}  Bxd4 {[%clk 0:01:09]} 20. Bh4 {[%clk 0:01:51]}  Rc8 {[%clk 0:01:01]} 21. exd4 {[%clk 0:01:46]}  Nxd4 {[%clk 0:01:01]} 22. Qe3 {[%clk 0:01:42]}  Nxe2+ {[%clk 0:01:00]} 23. Qxe2 {[%clk 0:01:43]}  Qd3 {[%clk 0:00:57]} 24. Kf1 {[%clk 0:01:34]}  c5 {[%clk 0:00:51]} 25. Bg5 {[%clk 0:01:25]}  Kg7 {[%clk 0:00:48]} 26. Qxd3 {[%clk 0:01:22]}  exd3 {[%clk 0:00:47]} 27. Re1 {[%clk 0:01:22]}  Rxe1+ {[%clk 0:00:46]} 28. Kxe1 {[%clk 0:01:23]}  Re8+ {[%clk 0:00:46]} 29. Be3 {[%clk 0:01:24]}  f5 {[%clk 0:00:41]} 30. g3 {[%clk 0:01:23]}  Kf6 {[%clk 0:00:40]} 31. Nf3 {[%clk 0:01:21]}  Re4 {[%clk 0:00:37]} 32. Nd2 {[%clk 0:01:21]}  Re8 {[%clk 0:00:33]} 33. h4 {[%clk 0:01:20]}  a6 {[%clk 0:00:32]} 34. a4 {[%clk 0:01:19]}  f4 {[%clk 0:00:25]} 35. gxf4 {[%clk 0:01:17]}  Kf5 {[%clk 0:00:25]} 36. Nf3 {[%clk 0:01:09]}  Kg4 {[%clk 0:00:24]} 37. Ne5+ {[%clk 0:01:08]}  Kxh4 {[%clk 0:00:21]} 38. Kf1 {[%clk 0:01:03]}  g5 {[%clk 0:00:19]} 39. Ng6+ {[%clk 0:00:57]}  Kg4 {[%clk 0:00:19]} 40. fxg5 {[%clk 0:00:57]}  h4 {[%clk 0:00:19]} 41. Nf4 {[%clk 0:00:51]}  h3 {[%clk 0:00:18]} 42. Nxd3 {[%clk 0:00:50]}  Rxe3 {[%clk 0:00:17]} 43. fxe3 {[%clk 0:00:49]}  Kxg5 {[%clk 0:00:18]} 44. Nf2 {[%clk 0:00:45]}  h2 {[%clk 0:00:17]} 45. Kg2 {[%clk 0:00:45]}  Kf5 {[%clk 0:00:17]} 46. Kxh2 {[%clk 0:00:45]}  Ke5 {[%clk 0:00:18]} 47. Kg3 {[%clk 0:00:45]} 1-0


[Site "https://www.chess.com"]

[Event "Titled Tuesday Blitz April 11 Late 2023"]
[White "Barria Santos, Jose Guilherme"]
[Black "Dobre, Claudiu-Cristian"]
[WhiteFideId "1939300"]
[BlackFideId "1211854"]
[WhiteElo "2266"]
[BlackElo "2207"]
[Result "0-1"]
[Round "05"]
[TimeControl "180+2"]
[Date "2023.04.11"]
[WhiteClock "0:01:41"]
[BlackClock "0:00:14"]

1. Nf3 {[%clk 0:02:53]}  d6 {[%clk 0:02:59]} 2. g3 {[%clk 0:02:53]}  f5 {[%clk 0:02:54]} 3. Bg2 {[%clk 0:02:54]}  e5 {[%clk 0:02:54]} 4. d4 {[%clk 0:02:48]}  e4 {[%clk 0:02:51]} 5. Nfd2 {[%clk 0:02:49]}  d5 {[%clk 0:02:45]} 6. c4 {[%clk 0:02:50]}  c6 {[%clk 0:02:45]} 7. Nc3 {[%clk 0:02:50]}  Nf6 {[%clk 0:02:44]} 8. f3 {[%clk 0:02:51]}  Bd6 {[%clk 0:02:03]} 9. O-O {[%clk 0:02:31]}  Be6 {[%clk 0:01:54]} 10. e3 {[%clk 0:02:30]}  h5 {[%clk 0:01:50]} 11. fxe4 {[%clk 0:02:27]}  fxe4 {[%clk 0:01:50]} 12. cxd5 {[%clk 0:02:25]}  cxd5 {[%clk 0:01:49]} 13. Ndxe4 {[%clk 0:02:25]}  dxe4 {[%clk 0:01:41]} 14. Nxe4 {[%clk 0:02:26]}  Be7 {[%clk 0:00:55]} 15. Ng5 {[%clk 0:02:17]}  Bd5 {[%clk 0:00:24]} 16. e4 {[%clk 0:02:08]}  Bc6 {[%clk 0:00:24]} 17. d5 {[%clk 0:02:07]}  Bb5 {[%clk 0:00:23]} 18. e5 {[%clk 0:02:08]}  Bxf1 {[%clk 0:00:21]} 19. Kxf1 {[%clk 0:02:08]}  O-O {[%clk 0:00:20]} 20. Kg1 {[%clk 0:02:05]}  Ng4 {[%clk 0:00:20]} 21. Ne6 {[%clk 0:02:05]}  Qb6+ {[%clk 0:00:19]} 22. Kh1 {[%clk 0:02:06]}  Rc8 {[%clk 0:00:19]} 23. Qd4 {[%clk 0:01:57]}  Bc5 {[%clk 0:00:18]} 24. Nxc5 {[%clk 0:01:55]}  Qxc5 {[%clk 0:00:18]} 25. Qxc5 {[%clk 0:01:51]}  Rxc5 {[%clk 0:00:19]} 26. Bf4 {[%clk 0:01:51]}  Nd7 {[%clk 0:00:18]} 27. e6 {[%clk 0:01:50]}  Ndf6 {[%clk 0:00:18]} 28. d6 {[%clk 0:01:50]}  Re8 {[%clk 0:00:17]} 29. d7 {[%clk 0:01:48]}  Nxd7 {[%clk 0:00:18]} 30. exd7 {[%clk 0:01:49]}  Rd8 {[%clk 0:00:18]} 31. Rd1 {[%clk 0:01:48]}  b6 {[%clk 0:00:16]} 32. Kg1 {[%clk 0:01:48]}  Kf7 {[%clk 0:00:16]} 33. Bg5 {[%clk 0:01:48]}  Rxg5 {[%clk 0:00:15]} 34. Bc6 {[%clk 0:01:47]}  Ne5 {[%clk 0:00:13]} 35. Bd5+ {[%clk 0:01:44]}  Ke7 {[%clk 0:00:13]} 36. Kg2 {[%clk 0:01:44]}  Rxd7 {[%clk 0:00:12]} 37. h4 {[%clk 0:01:44]}  Rf5 {[%clk 0:00:12]} 38. Be4 {[%clk 0:01:44]}  Rf6 {[%clk 0:00:12]} 39. Re1 {[%clk 0:01:43]}  Kf8 {[%clk 0:00:11]} 40. Rc1 {[%clk 0:01:43]}  Nf7 {[%clk 0:00:10]} 41. Rc8+ {[%clk 0:01:43]}  Rd8 {[%clk 0:00:10]} 42. Rc7 {[%clk 0:01:44]}  Re6 {[%clk 0:00:11]} 43. Bf5 {[%clk 0:01:43]}  Re7 {[%clk 0:00:11]} 44. Rc6 {[%clk 0:01:43]}  Nd6 {[%clk 0:00:11]} 45. Bd3 {[%clk 0:01:42]}  Rdd7 {[%clk 0:00:10]} 46. a4 {[%clk 0:01:41]}  Kf7 {[%clk 0:00:10]} 47. Bc2 {[%clk 0:01:41]}  Ke6 {[%clk 0:00:10]} 48. Bb3+ {[%clk 0:01:42]}  Ke5 {[%clk 0:00:11]} 49. Rc1 {[%clk 0:01:41]}  Rc7 {[%clk 0:00:11]} 50. Re1+ {[%clk 0:01:41]}  Kf6 {[%clk 0:00:12]} 51. Rf1+ {[%clk 0:01:41]}  Kg6 {[%clk 0:00:12]} 52. Rd1 {[%clk 0:01:41]}  Nf5 {[%clk 0:00:11]} 53. Rd3 {[%clk 0:01:40]}  Rc5 {[%clk 0:00:11]} 54. Ba2 {[%clk 0:01:40]}  Kh6 {[%clk 0:00:12]} 55. b4 {[%clk 0:01:40]}  Rc2+ {[%clk 0:00:11]} 56. Kh3 {[%clk 0:01:40]}  Rxa2 {[%clk 0:00:12]} 57. Rd5 {[%clk 0:01:41]}  g6 {[%clk 0:00:12]} 58. Rd8 {[%clk 0:01:41]}  Rxa4 {[%clk 0:00:12]} 59. Rh8+ {[%clk 0:01:41]}  Kg7 {[%clk 0:00:13]} 60. g4 {[%clk 0:01:40]}  Ra3+ {[%clk 0:00:12]} 61. Kg2 {[%clk 0:01:40]}  hxg4 {[%clk 0:00:13]} 62. h5 {[%clk 0:01:40]}  Re2+ {[%clk 0:00:13]} 63. Kf1 {[%clk 0:01:41]}  Ng3+ {[%clk 0:00:13]} 64. Kg1 {[%clk 0:01:41]}  Ra1# {[%clk 0:00:14]} 0-1


[Site "https://www.chess.com"]

[Event "Titled Tuesday Blitz April 11 Late 2023"]
[White "Araujo Sanchez, Josue"]
[Black "Torres Dominguez, David"]
[WhiteFideId "6416896"]
[BlackFideId "2220857"]
[WhiteElo "2420"]
[BlackElo "1999"]
[Result "1-0"]
[Round "05"]
[TimeControl "180+2"]
[Date "2023.04.11"]
[WhiteClock "0:01:17"]
[BlackClock "0:00:38"]

1. d4 {[%clk 0:03:00]}  e5 {[%clk 0:02:59]} 2. Nf3 {[%clk 0:03:01]}  e4 {[%clk 0:02:58]} 3. Ng5 {[%clk 0:03:02]}  f5 {[%clk 0:02:56]} 4. c4 {[%clk 0:03:01]}  Nf6 {[%clk 0:02:56]} 5. g3 {[%clk 0:03:00]}  Bb4+ {[%clk 0:02:49]} 6. Bd2 {[%clk 0:02:59]}  Bxd2+ {[%clk 0:02:43]} 7. Qxd2 {[%clk 0:03:00]}  O-O {[%clk 0:02:42]} 8. Nh3 {[%clk 0:02:56]}  d5 {[%clk 0:02:41]} 9. e3 {[%clk 0:02:53]}  Nc6 {[%clk 0:02:28]} 10. Nc3 {[%clk 0:02:50]}  Kh8 {[%clk 0:02:20]} 11. cxd5 {[%clk 0:02:45]}  Nxd5 {[%clk 0:02:21]} 12. Nxd5 {[%clk 0:02:46]}  Qxd5 {[%clk 0:02:21]} 13. Nf4 {[%clk 0:02:47]}  Qd6 {[%clk 0:02:13]} 14. h4 {[%clk 0:02:48]}  Be6 {[%clk 0:02:04]} 15. d5 {[%clk 0:02:31]}  Ne5 {[%clk 0:02:02]} 16. Be2 {[%clk 0:02:21]}  Bf7 {[%clk 0:01:57]} 17. Rd1 {[%clk 0:02:21]}  Rad8 {[%clk 0:01:54]} 18. Qc3 {[%clk 0:02:20]}  Rd7 {[%clk 0:01:45]} 19. O-O {[%clk 0:02:18]}  Qf6 {[%clk 0:01:40]} 20. Qb4 {[%clk 0:02:10]}  Rb8 {[%clk 0:01:30]} 21. Qc5 {[%clk 0:01:57]}  b6 {[%clk 0:01:27]} 22. Qc3 {[%clk 0:01:57]}  Rbd8 {[%clk 0:01:22]} 23. Rd4 {[%clk 0:01:56]}  c5 {[%clk 0:01:14]} 24. dxc6 {[%clk 0:01:54]}  Rxd4 {[%clk 0:01:14]} 25. c7 {[%clk 0:01:51]}  R4d7 {[%clk 0:01:01]} 26. cxd8=Q+ {[%clk 0:01:52]}  Rxd8 {[%clk 0:01:00]} 27. Rd1 {[%clk 0:01:16]}  Rxd1+ {[%clk 0:00:56]} 28. Bxd1 {[%clk 0:01:17]}  Nf3+ {[%clk 0:00:37]} 29. Bxf3 {[%clk 0:01:15]}  Qxc3 {[%clk 0:00:37]} 30. bxc3 {[%clk 0:01:16]}  exf3 {[%clk 0:00:38]} 31. a3 {[%clk 0:01:17]} 1-0


[Site "https://www.chess.com"]

[Event "Titled Tuesday Blitz April 11 Late 2023"]
[White "Thorfinnsson, Bjorn"]
[Black "Vifleemskaia, Svetlana"]
[WhiteFideId "2300982"]
[BlackFideId "4129490"]
[WhiteElo "2395"]
[BlackElo "1930"]
[Result "1-0"]
[Round "05"]
[TimeControl "180+2"]
[Date "2023.04.11"]
[WhiteClock "0:00:57"]
[BlackClock "0:00:02"]

1. d4 {[%clk 0:02:52]}  Nf6 {[%clk 0:02:59]} 2. Nf3 {[%clk 0:02:52]}  d5 {[%clk 0:02:59]} 3. Bg5 {[%clk 0:02:52]}  Ne4 {[%clk 0:02:58]} 4. e3 {[%clk 0:02:52]}  Nxg5 {[%clk 0:02:56]} 5. Nxg5 {[%clk 0:02:53]}  h6 {[%clk 0:02:55]} 6. Nf3 {[%clk 0:02:53]}  c5 {[%clk 0:02:55]} 7. c3 {[%clk 0:02:52]}  Qb6 {[%clk 0:02:53]} 8. Qc2 {[%clk 0:02:47]}  g6 {[%clk 0:02:46]} 9. Nbd2 {[%clk 0:02:47]}  Bg7 {[%clk 0:02:45]} 10. Qb3 {[%clk 0:02:39]}  c4 {[%clk 0:02:43]} 11. Qxb6 {[%clk 0:02:36]}  axb6 {[%clk 0:02:44]} 12. a3 {[%clk 0:02:36]}  b5 {[%clk 0:02:43]} 13. e4 {[%clk 0:02:34]}  Be6 {[%clk 0:02:36]} 14. exd5 {[%clk 0:02:32]}  Bxd5 {[%clk 0:02:36]} 15. Be2 {[%clk 0:02:30]}  Nc6 {[%clk 0:02:36]} 16. O-O {[%clk 0:02:29]}  O-O {[%clk 0:02:34]} 17. Rac1 {[%clk 0:02:26]}  Rad8 {[%clk 0:02:09]} 18. Rfe1 {[%clk 0:02:23]}  e6 {[%clk 0:02:07]} 19. Nf1 {[%clk 0:02:21]}  g5 {[%clk 0:01:56]} 20. Ne3 {[%clk 0:02:20]}  Be4 {[%clk 0:01:54]} 21. Nd2 {[%clk 0:02:19]}  Bg6 {[%clk 0:01:52]} 22. Bf3 {[%clk 0:02:16]}  Bd3 {[%clk 0:01:36]} 23. Ne4 {[%clk 0:02:11]}  Bxe4 {[%clk 0:01:30]} 24. Bxe4 {[%clk 0:02:11]}  f5 {[%clk 0:01:30]} 25. Bxc6 {[%clk 0:02:08]}  bxc6 {[%clk 0:01:30]} 26. Nc2 {[%clk 0:02:09]}  Rd6 {[%clk 0:01:27]} 27. Re2 {[%clk 0:02:04]}  Kf7 {[%clk 0:01:27]} 28. Kf1 {[%clk 0:02:03]}  Ke7 {[%clk 0:01:26]} 29. Rce1 {[%clk 0:02:01]}  Kd7 {[%clk 0:01:26]} 30. Nb4 {[%clk 0:02:00]}  Re8 {[%clk 0:01:24]} 31. Na6 {[%clk 0:02:00]}  Ke7 {[%clk 0:01:13]} 32. Nc7 {[%clk 0:01:58]}  Rc8 {[%clk 0:00:44]} 33. Nxe6 {[%clk 0:01:58]}  Kf7 {[%clk 0:00:43]} 34. Nc5 {[%clk 0:01:47]}  Bf6 {[%clk 0:00:42]} 35. h3 {[%clk 0:01:43]}  Rd5 {[%clk 0:00:41]} 36. g4 {[%clk 0:01:40]}  fxg4 {[%clk 0:00:38]} 37. hxg4 {[%clk 0:01:40]}  Rh8 {[%clk 0:00:36]} 38. Re6 {[%clk 0:01:33]}  Rc8 {[%clk 0:00:26]} 39. Kg2 {[%clk 0:01:27]}  h5 {[%clk 0:00:19]} 40. gxh5 {[%clk 0:01:26]}  g4 {[%clk 0:00:19]} 41. h6 {[%clk 0:01:25]}  Rh5 {[%clk 0:00:18]} 42. Nd7 {[%clk 0:01:20]}  Rxh6 {[%clk 0:00:16]} 43. R6e4 {[%clk 0:01:06]}  Rg6 {[%clk 0:00:13]} 44. Rf4 {[%clk 0:01:05]}  Kg7 {[%clk 0:00:09]} 45. Re6 {[%clk 0:00:58]}  Bg5 {[%clk 0:00:02]} 46. Rxg6+ {[%clk 0:00:58]}  Kxg6 {[%clk 0:00:02]} 47. Ne5+ {[%clk 0:00:57]} 1-0


[Site "https://www.chess.com"]

[Event "Titled Tuesday Blitz April 11 Late 2023"]
[White "Zampronha, Wladimir Camilo"]
[Black "Minko, Dmitry"]
[WhiteFideId "2103087"]
[BlackFideId "24188468"]
[WhiteElo "2176"]
[BlackElo "2147"]
[Result "1-0"]
[Round "05"]
[TimeControl "180+2"]
[Date "2023.04.11"]
[WhiteClock "0:01:05"]
[BlackClock "0:00:01"]

1. e4 {[%clk 0:03:00]}  e5 {[%clk 0:02:55]} 2. Nf3 {[%clk 0:03:00]}  Nc6 {[%clk 0:02:55]} 3. d4 {[%clk 0:03:01]}  exd4 {[%clk 0:02:55]} 4. Nxd4 {[%clk 0:03:01]}  Bc5 {[%clk 0:02:55]} 5. Be3 {[%clk 0:03:00]}  Qf6 {[%clk 0:02:55]} 6. c3 {[%clk 0:03:00]}  Nge7 {[%clk 0:02:55]} 7. Bc4 {[%clk 0:03:00]}  O-O {[%clk 0:02:53]} 8. O-O {[%clk 0:02:59]}  Rd8 {[%clk 0:02:52]} 9. f4 {[%clk 0:02:45]}  Bxd4 {[%clk 0:02:42]} 10. cxd4 {[%clk 0:02:44]}  d5 {[%clk 0:02:42]} 11. e5 {[%clk 0:02:44]}  Qg6 {[%clk 0:02:42]} 12. Bd3 {[%clk 0:02:40]}  Bf5 {[%clk 0:02:42]} 13. Bxf5 {[%clk 0:02:38]}  Nxf5 {[%clk 0:02:43]} 14. Bf2 {[%clk 0:02:38]}  f6 {[%clk 0:01:52]} 15. Nc3 {[%clk 0:02:38]}  fxe5 {[%clk 0:01:52]} 16. fxe5 {[%clk 0:02:39]}  Nce7 {[%clk 0:01:51]} 17. Qd2 {[%clk 0:02:32]}  Rf8 {[%clk 0:01:49]} 18. Ne2 {[%clk 0:02:17]}  Qg4 {[%clk 0:01:30]} 19. Ng3 {[%clk 0:02:10]}  Nxg3 {[%clk 0:01:28]} 20. Bxg3 {[%clk 0:02:08]}  Nf5 {[%clk 0:01:22]} 21. Rf4 {[%clk 0:02:03]}  Qg6 {[%clk 0:01:13]} 22. Bf2 {[%clk 0:01:53]}  Ne7 {[%clk 0:01:12]} 23. Rxf8+ {[%clk 0:01:49]}  Rxf8 {[%clk 0:01:13]} 24. Qb4 {[%clk 0:01:44]}  Qf7 {[%clk 0:01:00]} 25. Rf1 {[%clk 0:01:44]}  b6 {[%clk 0:00:53]} 26. Qa4 {[%clk 0:01:31]}  a5 {[%clk 0:00:32]} 27. Qd7 {[%clk 0:01:28]}  Ng6 {[%clk 0:00:19]} 28. Qxf7+ {[%clk 0:01:29]}  Rxf7 {[%clk 0:00:19]} 29. Rc1 {[%clk 0:01:28]}  Kf8 {[%clk 0:00:16]} 30. Bg3 {[%clk 0:01:24]}  Ke8 {[%clk 0:00:13]} 31. e6 {[%clk 0:01:22]}  Re7 {[%clk 0:00:14]} 32. Rxc7 {[%clk 0:01:22]}  Rxe6 {[%clk 0:00:12]} 33. Rxg7 {[%clk 0:01:19]}  Re2 {[%clk 0:00:10]} 34. Rxh7 {[%clk 0:01:18]}  Rxb2 {[%clk 0:00:11]} 35. Rb7 {[%clk 0:01:10]}  b5 {[%clk 0:00:05]} 36. h4 {[%clk 0:01:10]}  b4 {[%clk 0:00:05]} 37. h5 {[%clk 0:01:10]}  Ne7 {[%clk 0:00:05]} 38. h6 {[%clk 0:01:08]}  Kf8 {[%clk 0:00:02]} 39. Bd6 {[%clk 0:01:06]}  Kg8 {[%clk 0:00:01]} 40. Rxe7 {[%clk 0:01:05]}  Rxa2 {[%clk 0:00:01]} 41. h7+ {[%clk 0:01:05]} 1-0


[Site "https://www.chess.com"]

[Event "Titled Tuesday Blitz April 11 Late 2023"]
[White "Bilan, Danila"]
[Black "Smith, Garrett L"]
[WhiteFideId "24161918"]
[BlackFideId "2024829"]
[WhiteElo "2182"]
[BlackElo "2047"]
[Result "1-0"]
[Round "05"]
[TimeControl "180+2"]
[Date "2023.04.11"]
[WhiteClock "0:00:37"]
[BlackClock "0:01:19"]

1. d4 {[%clk 0:03:00]}  Nf6 {[%clk 0:02:59]} 2. Nf3 {[%clk 0:03:00]}  g6 {[%clk 0:03:00]} 3. Bg5 {[%clk 0:02:56]}  Bg7 {[%clk 0:02:59]} 4. c3 {[%clk 0:02:56]}  d5 {[%clk 0:02:57]} 5. Nbd2 {[%clk 0:02:55]}  c6 {[%clk 0:02:56]} 6. e3 {[%clk 0:02:52]}  Bf5 {[%clk 0:02:56]} 7. Qb3 {[%clk 0:02:51]}  Qb6 {[%clk 0:02:55]} 8. c4 {[%clk 0:02:51]}  O-O {[%clk 0:02:50]} 9. Bxf6 {[%clk 0:02:48]}  exf6 {[%clk 0:02:36]} 10. cxd5 {[%clk 0:02:45]}  Qxb3 {[%clk 0:02:36]} 11. Nxb3 {[%clk 0:02:43]}  cxd5 {[%clk 0:02:36]} 12. Rc1 {[%clk 0:02:38]}  Rc8 {[%clk 0:02:27]} 13. Rxc8+ {[%clk 0:02:29]}  Bxc8 {[%clk 0:02:27]} 14. Kd2 {[%clk 0:02:23]}  Nc6 {[%clk 0:02:26]} 15. Bb5 {[%clk 0:02:19]}  Bf8 {[%clk 0:02:26]} 16. Rc1 {[%clk 0:02:12]}  Bb4+ {[%clk 0:02:24]} 17. Ke2 {[%clk 0:02:04]}  Na5 {[%clk 0:01:53]} 18. Nc5 {[%clk 0:01:31]}  a6 {[%clk 0:01:42]} 19. Bd3 {[%clk 0:01:16]}  b6 {[%clk 0:01:39]} 20. Na4 {[%clk 0:01:10]}  Rb8 {[%clk 0:01:21]} 21. Nxb6 {[%clk 0:00:58]}  Rxb6 {[%clk 0:01:22]} 22. Rxc8+ {[%clk 0:00:57]}  Kg7 {[%clk 0:01:22]} 23. Ra8 {[%clk 0:00:46]}  Nc4 {[%clk 0:01:19]} 24. b3 {[%clk 0:00:37]} 1-0


[Site "https://www.chess.com"]